fUST/lending_fUST_20240830
["ID","MTS","AMOUNT","RATE_DAILY","PERIOD"]
[336641215,1724994641117,-362.34,0.00023581,3]
[336641217,1724994641127,-1972.86,0.0002359,5]
[336641219,1724994641136,-500.0,0.0002359,5]
[336641221,1724994641146,-500.0,0.0002359,5]
[336641223,1724994641155,-795.4,0.0002359,5]
[336641225,1724994641165,-500.0,0.0002359,5]
[336641227,1724994641174,-500.0,0.0002359,5]
[336641228,1724994641183,-500.0,0.0002359,5]
[336641230,1724994641192,-500.0,0.0002359,5]
[336641232,1724994641201,-346.91,0.0002359,5]
[336641233,1724994641210,-531.42,0.0002359,5]
[336641235,1724994641219,-500.0,0.0002382,5]
[336641237,1724994641232,-500.0,0.00023821,5]
[336641239,1724994641245,-236.86515275,0.00023854,2]
[336641240,1724994641258,-572.70000916,0.00023854,2]
[336641241,1724994641274,-500.0,0.00023854,2]
[336641243,1724994641288,-616.96695471,0.00023854,2]
[336641245,1724994641300,-500.0,0.00023854,2]
[336641247,1724994641313,-500.0,0.00023854,2]
[336641249,1724994641323,-500.0,0.00023854,2]
[336641251,1724994641335,-500.0,0.00023854,2]
[336641254,1724994641348,-500.0,0.00023854,2]
[336641256,1724994641361,-500.0,0.00023854,2]
[336641258,1724994641374,-2723.4,0.00023855,3]
[336641260,1724994641386,-1972.86,0.00023864,5]
[336641263,1724994641401,-500.0,0.00023864,5]
[336641265,1724994641413,-500.0,0.00023864,5]
[336641267,1724994641426,-795.4,0.00023864,5]
[336641270,1724994641438,-500.0,0.00023864,5]
[336641272,1724994641451,-416.97,0.00023864,5]
[336641274,1724994641464,-500.0,0.00023864,5]
[336641276,1724994641476,-274.6156026,0.00023864,5]
[336641279,1724994641488,-2000.0,0.00024,30]
[336641281,1724994641500,-1718.0,0.00024,30]
[336641282,1724994641511,-2000.0,0.00024,30]
[336641285,1724994641523,-2000.0,0.00024,30]
[336641287,1724994641534,-1447.0,0.00024,30]
[336641289,1724994641545,-500.0,0.00024095,5]
[336641291,1724994641558,-1972.86,0.00024138,5]
[336641293,1724994641571,-475.27,0.00024138,5]
[336641296,1724994641582,-278.33,0.00024138,5]
[336641298,1724994641593,-795.4,0.00024138,5]
[336641300,1724994641605,-500.0,0.00024138,5]
[336641302,1724994641616,-500.0,0.00024138,5]
[336641304,1724994641627,-500.0,0.00024369,5]
[336641307,1724994641639,-1972.86,0.00024412,5]
[336641309,1724994641651,-795.4,0.00024412,5]
[336641311,1724994641661,-500.0,0.00024412,5]
[336641313,1724994641671,-500.0,0.00024412,5]
[336641315,1724994641683,-500.0,0.00024643,5]
[336641317,1724994641697,-200.0,0.00024658,15]
[336641319,1724994641709,-380.0,0.00024658,2]
[336641321,1724994641720,-1972.86,0.00024686,5]
[336641324,1724994641731,-795.4,0.00024686,5]
[336641326,1724994641743,-500.0,0.00024686,5]
[336641328,1724994641755,-500.0,0.00024686,5]
[336641330,1724994641768,-255.90275,0.00024859,2]
[336641333,1724994641780,-500.0,0.00024917,5]
[336641335,1724994641791,-182.0,0.00024941,2]
[336641337,1724994641804,-314.57414659,0.00024949,5]
[336641339,1724994641816,-1972.86,0.0002496,5]
[336641341,1724994641828,-795.4,0.0002496,5]
[336641343,1724994641840,-500.0,0.0002496,5]
[336641345,1724994641852,-500.0,0.0002496,5]
[336641347,1724994641864,-500.0,0.00024973,2]
[336641349,1724994641875,-160.05,0.00025,2]
[336641351,1724994641886,-21307.4158842,0.00025,4]
[336641353,1724994641897,-500.0,0.00025191,5]
[336641355,1724994641908,-1972.86,0.00025234,5]
[336641356,1724994641919,-795.4,0.00025234,5]
[336641358,1724994641930,-500.0,0.00025234,5]
[336641360,1724994641941,-500.0,0.00025234,5]
[336641362,1724994641954,-500.0,0.00025465,5]
[336641364,1724994641966,-1972.86,0.00025508,5]
[336641367,1724994641979,-795.4,0.00025508,5]
[336641369,1724994641991,-500.0,0.00025508,5]
[336641371,1724994642004,-288.96217156,0.00025508,5]
[336641374,1724994642016,-324.0,0.00025509,2]
[336641376,1724994642030,-501.20827901,0.00025521,2]
[336641378,1724994642042,-500.0,0.00025739,5]
[336641380,1724994642052,-1972.86,0.00025782,5]
[336641383,1724994642065,-795.4,0.00025782,5]
[336641385,1724994642077,-543.17,0.00025782,5]
[336641387,1724994642088,-2418.55764047,0.00025866,2]
[336641389,1724994642098,-500.0,0.00026013,5]
[336641391,1724994642111,-1972.86,0.00026056,5]
[336641393,1724994642123,-795.4,0.00026056,5]
[336641395,1724994642134,-169.62,0.00026287,5]
[336641398,1724994642145,-1972.86,0.0002633,5]
[336641400,1724994642156,-795.4,0.0002633,5]
[336641402,1724994642167,-500.0,0.00026461,5]
[336641404,1724994642178,-511.90598505,0.00026461,5]
[336641406,1724994642189,-647.94718834,0.00026461,5]
[336641408,1724994642200,-502.86391195,0.00026461,5]
[336641411,1724994642213,-238.59122016,0.00026461,5]
[336641413,1724994642225,-504.463096,0.00026461,5]
[336641415,1724994642236,-501.85437594,0.00026461,5]
[336641417,1724994642247,-500.0,0.00026461,5]
[336641419,1724994642259,-500.0,0.00026461,5]
[336641422,1724994642271,-500.0,0.00026461,5]
[336641424,1724994642282,-500.0,0.00026461,5]
[336641426,1724994642294,-500.0,0.00026461,5]
[336641428,1724994642306,-500.0,0.00026461,5]
[336641430,1724994642316,-500.0,0.00026461,5]
[336641433,1724994642328,-500.0,0.00026461,5]
[336641435,1724994642339,-502.71099681,0.00026461,5]
[336641437,1724994642350,-500.0,0.00026461,5]
[336641439,1724994642361,-500.0,0.00026461,5]
[336641441,1724994642373,-500.0,0.00026461,5]
[336641444,1724994642386,-500.0,0.00026461,5]
[336641446,1724994642398,-500.0,0.00026461,5]
[336641448,1724994642410,-554.50748821,0.00026461,5]
[336641450,1724994642421,-500.0,0.00026461,5]
[336641452,1724994642432,-308.30179477,0.00026461,5]
[336641455,1724994642443,-500.0,0.00026461,5]
[336641457,1724994642454,-500.0,0.00026461,5]
[336641459,1724994642464,-500.0,0.00026461,5]
[336641461,1724994642474,-505.03090183,0.00026461,5]
[336641463,1724994642484,-500.0,0.00026461,5]
[336641465,1724994642494,-500.0,0.00026461,5]
[336641467,1724994642505,-500.0,0.00026461,5]
[336641469,1724994642516,-500.0,0.00026461,5]
[336641472,1724994642527,-500.0,0.00026461,5]
[336641474,1724994642537,-500.0,0.00026461,5]
[336641476,1724994642548,-505.81580382,0.00026461,5]
[336641478,1724994642558,-500.0,0.00026461,5]
[336641480,1724994642569,-500.0,0.00026461,5]
[336641482,1724994642579,-328.23224093,0.00026461,5]
[336641484,1724994642590,-500.0,0.00026461,5]
[336641487,1724994642601,-500.0,0.00026461,5]
[336641489,1724994642614,-500.0,0.00026461,5]
[336641491,1724994642626,-500.0,0.00026461,5]
[336641494,1724994642638,-504.73472263,0.00026461,5]
[336641496,1724994642649,-500.0,0.00026461,5]
[336641498,1724994642660,-500.0,0.00026461,5]
[336641500,1724994642671,-500.0,0.00026461,5]
[336641502,1724994642683,-500.0,0.00026461,5]
[336641504,1724994642695,-500.0,0.00026461,5]
[336641507,1724994642706,-500.0,0.00026461,5]
[336641509,1724994642716,-500.0,0.00026461,5]
[336641511,1724994642727,-488.36200788,0.00026461,5]
[336641518,1724994642865,-500.87094952,0.00026461,5]
[336641519,1724994642875,-603.74315927,0.00026461,5]
[336641520,1724994642884,-500.0,0.00026461,5]
[336641521,1724994642894,-500.0,0.00026461,5]
[336641522,1724994642904,-500.0,0.00026461,5]
[336641523,1724994642914,-552.29,0.00026461,5]
[336641524,1724994642923,-505.05595094,0.00026461,5]
[336641525,1724994642933,-525.34820175,0.00026461,5]
[336641526,1724994642942,-505.12709121,0.00026461,5]
[336641527,1724994642951,-500.0,0.00026473,2]
[336641528,1724994642961,-153.83,0.000266,31]
[336641530,1724994642971,-153.83,0.000266,31]
[336641532,1724994642980,-1972.86,0.00026604,5]
[336641534,1724994642991,-795.4,0.00026604,5]
[336641536,1724994643002,-500.0,0.00026735,5]
[336641538,1724994643012,-500.0,0.00026735,5]
[336641540,1724994643021,-500.0,0.00026735,5]
[336641542,1724994643030,-500.0,0.00026735,5]
[336641543,1724994643041,-640.39834679,0.00026735,5]
[336641544,1724994643051,-497.30482656,0.00026735,5]
[336641545,1724994643061,-500.0,0.00026735,5]
[336641546,1724994643072,-592.18,0.00026735,5]
[336641547,1724994643083,-500.0,0.00026735,5]
[336641548,1724994643093,-500.0,0.00026735,5]
[336641549,1724994643105,-1972.86,0.00026878,5]
[336641550,1724994643116,-795.4,0.00026878,5]
[336641551,1724994643127,-500.0,0.00026948,2]
[336641552,1724994643136,-500.0,0.00027009,5]
[336641553,1724994643146,-350.51488747,0.00027009,5]
[336641554,1724994643156,-500.0,0.00027009,5]
[336641555,1724994643166,-500.0,0.00027009,5]
[336641556,1724994643177,-500.0,0.00027009,5]
[336641557,1724994643186,-500.0,0.00027021,2]
[336641558,1724994643195,-500.0,0.00027038,2]
[336641559,1724994643205,-500.0,0.00027057,2]
[336641560,1724994643215,-382.07004296,0.00027111,2]
[336641561,1724994643224,-1972.86,0.00027152,5]
[336641562,1724994643235,-795.4,0.00027152,5]
[336641563,1724994643244,-555.47,0.00027283,5]
[336641564,1724994643253,-500.0,0.00027283,5]
[336641565,1724994643263,-500.0,0.00027283,5]
[336641566,1724994643273,-500.0,0.00027283,5]
[336641567,1724994643282,-1972.97540923,0.00027426,5]
[336641568,1724994643292,-795.62000001,0.00027426,5]
[336641569,1724994643301,-500.0,0.00027457,2]
[336641570,1724994643311,-500.0,0.00027557,5]
[336641571,1724994643320,-600.03,0.00027557,5]
[336641572,1724994643329,-600.0,0.00027577,2]
[336641573,1724994643339,-522.0,0.00027825,2]
[336641574,1724994643348,-150.0,0.00027825,2]
[336641575,1724994643358,-500.0,0.00027831,5]
[336641576,1724994643367,-500.0,0.00027838,2]
[336641577,1724994643377,-500.0,0.00027916,2]
[336641578,1724994643386,-500.0,0.0002792,2]
[336641579,1724994643395,-500.0,0.00028074,2]
[336641580,1724994643406,-518.46,0.00028105,5]
[336641581,1724994643415,-500.0,0.00028262,2]
[336641582,1724994643424,-800.0,0.00028381,2]
[336641583,1724994643434,-900.0,0.00028644,2]
[336641584,1724994643443,-2418.55764047,0.00029106,2]
[336641585,1724994643452,-151.0,0.0003,120]
[336641586,1724994643461,-224.0,0.0003,2]
[336641587,1724994643470,-151.0,0.0003,120]
[336641588,1724994643480,-153.83,0.000304,31]
[336641589,1724994643490,-153.83,0.000304,31]
[336641590,1724994643499,-153.83,0.000304,31]
[336641592,1724994643508,-153.83,0.000304,31]
[336641593,1724994643517,-150.0,0.00030825,2]
[336641594,1724994643526,-151.0,0.00030959,120]
[336641595,1724994643535,-384.02617366,0.0003102,120]
[336641596,1724994643545,-255.90275,0.00031089,2]
[336641597,1724994643554,-200.0,0.00031147,30]
[336641598,1724994643563,-300.0,0.00031147,30]
[336641599,1724994643572,-150.0,0.00031147,14]
[336641600,1724994643582,-150.0,0.00031147,14]
[336641601,1724994643591,-200.0,0.00031147,14]
[336641602,1724994643600,-151.0,0.00031534,120]
[336641603,1724994643610,-45321.04754619,0.00031842,5]
[336641604,1724994643703,-277.42670703,0.00026461,5]
[336641605,1724994643713,-43566.95245381,0.00031842,5]
[336641606,1724994643723,-151.0,0.00031918,120]
[336641607,1724994643732,-150.0,0.00032,30]
[336641608,1724994643742,-2418.55764047,0.00032347,2]
[336641609,1724994643752,-500.0,0.00032876,60]
[336641610,1724994643762,-500.0,0.00032876,60]
[336641611,1724994643773,-500.0,0.00032876,60]
[336641612,1724994643783,-501.27887223,0.00032876,60]
[336641614,1724994643793,-151.0,0.00032877,120]
[336641616,1724994643803,-150.0,0.00033,30]
[336641618,1724994643813,-224.0,0.00033,2]
[336641620,1724994643823,-224.0,0.00033,2]
[336641622,1724994643833,-151.0,0.00033068,120]
[336641624,1724994643844,-151.0,0.00033836,120]
[336641626,1724994643855,-200.0,0.00034,30]
[336641628,1724994643864,-478.886592,0.00034,30]
[336641631,1724994643875,-153.83,0.000342,31]
[336641633,1724994643884,-153.83,0.000342,31]
[336641635,1724994643895,-153.83,0.000342,31]
[336641637,1724994643905,-153.83,0.000342,31]
[336641639,1724994643916,-151.0,0.00034603,120]
[336641641,1724994643927,-415.5814474,0.00034765,2]
[336641643,1724994643938,-153.0,0.00034765,2]
[336641645,1724994643947,-153.0,0.00034765,2]
[336641647,1724994643956,-151.0,0.00034795,120]
[336641649,1724994643966,-160.0,0.00034973,3]
[336641651,1724994643975,-900.0,0.00035,3]
[336641653,1724994643985,-1000.0,0.00035442,2]
[336641656,1724994643996,-1000.0,0.00035452,2]
[336641658,1724994644007,-1039.12265841,0.00035506,2]
[336641660,1724994644017,-1000.0,0.00035518,2]
[336641662,1724994644027,-1000.0,0.00035558,2]
[336641664,1724994644036,-1000.0,0.00035582,2]
[336641665,1724994644047,-407.81710597,0.00035586,2]
[336641666,1724994644056,-11505.2328206,0.00035586,2]
[336641669,1724994644065,-2418.55764047,0.00035587,2]
[336641671,1724994644075,-151.0,0.00035616,7]
[336641672,1724994644086,-151.0,0.00035616,7]
[336641674,1724994644095,-3148.298683,0.00035616,7]
[336641676,1724994644104,-3148.298683,0.00035616,7]
[336641678,1724994644114,-650.265454,0.00035616,120]
[336641680,1724994644123,-97097.17,0.00035616,3]
[336641682,1724994644132,-80914.3,0.00035616,3]
[336641684,1724994644142,-38227.06128022,0.00035616,3]
[336641686,1724994644154,-29201.52871978,0.00035616,3]
[336641688,1724994644164,-405.3451976,0.00035687,2]
[336641690,1724994644174,-292.7,0.000357,14]
[336641691,1724994644183,-537.96,0.000357,30]
[336641692,1724994644192,-620.38,0.000357,14]
[336641693,1724994644201,-9901.7,0.000357,14]
[336641694,1724994644211,-151.0,0.00035753,120]
[336641695,1724994644220,-155.0,0.0003589,2]
[336641696,1724994644229,-151.0,0.000359,7]
[336641698,1724994644238,-488.603368,0.000359,7]
[336641700,1724994644248,-488.603368,0.000359,7]
[336641702,1724994644257,-151.0,0.000359,7]
[336641703,1724994644266,-152.146413,0.000359,7]
[336641705,1724994644275,-151.0,0.000359,7]
[336641707,1724994644284,-151.0,0.000359,7]
[336641709,1724994644294,-341.013675,0.000359,7]
[336641711,1724994644304,-341.013675,0.000359,7]
[336641713,1724994644313,-300.0,0.00036,12]
[336641715,1724994644322,-155.0,0.00036,2]
[336641717,1724994644332,-45.84419178,0.00036,30]
[336641719,1724994644344,-204.15580822,0.00036,30]
[336641721,1724994644353,-224.0,0.00036,2]
[336641723,1724994644362,-99.93588152,0.00036,2]
[336641725,1724994644374,-124.06411848,0.00036,2]
[336641727,1724994644383,-224.0,0.00036,2]
[336641729,1724994644393,-156.0,0.00036,2]
[336641731,1724994644403,-151.0,0.00036137,120]
[336641733,1724994644412,-207.8243323,0.00036506,2]
[336641735,1724994644422,-409.5167953,0.00036506,2]
[336641737,1724994644431,-151.0,0.00036712,120]
[336641739,1724994644441,-150.112233,0.000368,7]
[336641741,1724994644451,-500.0,0.00037,10]
[336641742,1724994644460,-300.0,0.00037,14]
[336641745,1724994644470,-1065.16206718,0.00037,10]
[336641747,1724994644480,-680.12766256,0.00037,3]
[336641758,1724994644580,-319.87233744,0.00037,3]
[336641760,1724994644589,-289.6465188,0.00037,7]
[336641766,1724994644727,-9710.3534812,0.00037,7]
[336641767,1724994644738,-13342.13860039,0.00037,7]
[336641768,1724994644748,-500.0,0.00037136,2]
[336641769,1724994644757,-173.97701112,0.00037301,21]
[336641770,1724994644768,-255.90275,0.00037318,2]
[336641771,1724994644777,-153.5532754,0.00037322,2]
[336641772,1724994644787,-409.5167953,0.00037328,2]
[336641773,1724994644797,-409.5167953,0.00037328,2]
[336641774,1724994644807,-409.5167953,0.00037328,2]
[336641775,1724994644816,-409.5167953,0.00037328,2]
[336641776,1724994644826,-409.5167953,0.00037328,2]
[336641777,1724994644836,-409.5167953,0.00037328,2]
[336641778,1724994644845,-407.6699076,0.00037328,2]
[336641779,1724994644855,-819.0335906,0.00037328,2]
[336641780,1724994644865,-160.0,0.00037349,4]
[336641781,1724994644874,-155.0,0.00037397,2]
[336641782,1724994644884,-156.0,0.00037397,2]
[336641783,1724994644895,-150.112233,0.000374,8]
[336641784,1724994644904,-151.0,0.00037671,120]
[336641785,1724994644913,-151.0,0.00037671,120]
[336641786,1724994644923,-249.50296397,0.00037973,5]
[336641787,1724994644933,-270.88761066,0.00038,5]
[336641788,1724994644942,-300.0,0.00038,15]
[336641789,1724994644952,-1000.0,0.00038,7]
[336641790,1724994644963,-153.83,0.00038,31]
[336641791,1724994644973,-153.83,0.00038,31]
[336641792,1724994644982,-153.83,0.00038,31]
[336641793,1724994644992,-153.83,0.00038,31]
[336641794,1724994645001,-250.0,0.00038,30]
[336641795,1724994645010,-151.0,0.00038,7]
[336641796,1724994645020,-10000.0,0.00038,7]
[336641797,1724994645030,-13341.0,0.00038,7]
[336641798,1724994645040,-151.0,0.00038,2]
[336641799,1724994645051,-239.665147,0.00038,7]
[336641800,1724994645062,-151.0,0.00038,7]
[336641801,1724994645071,-151.0,0.00038,7]
[336641802,1724994645081,-296.776048,0.00038,7]
[336641803,1724994645091,-296.776048,0.00038,7]
[336641805,1724994645101,-151.0,0.00038,7]
[336641807,1724994645111,-151.0,0.00038,7]
[336641809,1724994645120,-537.96,0.000381,30]
[336641811,1724994645130,-620.38,0.000381,14]
[336641813,1724994645140,-150.112233,0.000382,7]
[336641815,1724994645150,-9901.7,0.000382,14]
[336641817,1724994645160,-400.0,0.00038356,60]
[336641819,1724994645169,-292.7,0.000384,14]
[336641820,1724994645179,-150.112233,0.000384,9]
[336641822,1724994645191,-600.0,0.000384,2]
[336641824,1724994645201,-200.0,0.00038544,120]
[336641826,1724994645210,-150.112236,0.000386,5]
[336641828,1724994645221,-151.0,0.0003863,14]
[336641830,1724994645230,-151.0,0.0003863,14]
[336641832,1724994645241,-3950.2218153,0.0003863,60]
[336641836,1724994645308,-49.7781847,0.0003863,60]
[336641837,1724994645317,-4000.0,0.0003863,60]
[336641838,1724994645327,-4000.0,0.0003863,60]
[336641839,1724994645336,-4000.0,0.0003863,60]
[336641840,1724994645345,-4000.0,0.0003863,60]
[336641841,1724994645355,-4000.0,0.0003863,60]
[336641842,1724994645364,-4000.0,0.0003863,60]
[336641843,1724994645374,-4000.0,0.0003863,60]
[336641844,1724994645383,-4000.0,0.0003863,60]
[336641845,1724994645393,-1159.478574,0.0003863,60]
[336641846,1724994645402,-3148.298683,0.0003863,14]
[336641847,1724994645412,-3148.298683,0.0003863,14]
[336641848,1724994645422,-151.0,0.0003863,120]
[336641849,1724994645432,-602.30731541,0.000388,2]
[336641850,1724994645441,-300.0,0.00039,17]
[336641851,1724994645451,-150.0,0.00039,30]
[336641852,1724994645462,-1000.0,0.00039,7]
[336641853,1724994645471,-500.0,0.00039,120]
[336641854,1724994645481,-500.0,0.00039,120]
[336641855,1724994645490,-150.112233,0.00039,8]
[336641856,1724994645500,-224.0,0.00039,2]
[336641857,1724994645509,-224.0,0.00039,2]
[336641858,1724994645519,-151.0,0.00039205,120]
[336641859,1724994645528,-158.0,0.00039267,14]
[336641860,1724994645537,-150.112233,0.000394,9]
[336641861,1724994645547,-151.0,0.00039589,120]
[336641862,1724994645556,-160.0,0.00039726,5]
[336641863,1724994645566,-170.20538712,0.00039726,5]
[336641864,1724994645576,-160.0,0.00039799,30]
[336641865,1724994645585,-160.0,0.00039799,30]
[336641866,1724994645594,-14809.46824117,0.000398,60]
[336641880,1724994646290,-500.0,0.00022725,5]
[336641882,1724994646300,-409.5167953,0.00036506,2]
[336641884,1724994646309,-28505.35237096,0.000398,60]
[336641897,1724994740280,231.522832,0.0001863,2]
[336641906,1724995028041,179.772193,0.00014247,2]
[336641907,1724995255992,219.94669,0.0001863,2]
[336641934,1724995724695,16192.67516407,0.0002,2]
[336641935,1724995724795,1433.48270874,0.00019452,2]
[336641936,1724995726654,3999.24607587,0.000129,2]
[336641939,1724995771115,208.949355,0.0001863,2]
[336641999,1724995832407,-204.34911537,0.000209,2]
[336642000,1724995832417,-860.901675,0.00021,2]
[336642001,1724995832426,-300.0,0.00021124,2]
[336642002,1724995832436,-500.0,0.00021125,2]
[336642003,1724995832446,-310.3782227,0.00021125,2]
[336642004,1724995832455,-191.146793,0.00021141,2]
[336642005,1724995832464,-6917.006096,0.00021974,2]
[336642006,1724995832474,-500.0,0.00022725,5]
[336642007,1724995832483,-168.4311585,0.00022899,2]
[336642008,1724995832492,-1061.7,0.0002299,3]
[336642009,1724995832502,-530.85,0.0002299,3]
[336642010,1724995832512,-108.78599654,0.0002299,3]
[336642030,1724995838554,-156.63400346,0.0002299,3]
[336642032,1724995838564,-796.3,0.0002299,3]
[336642034,1724995838574,-500.0,0.00022998,5]
[336642036,1724995838584,-500.0,0.00022998,5]
[336642039,1724995838596,-500.0,0.00022998,5]
[336642041,1724995838606,-500.0,0.00022998,5]
[336642043,1724995838617,-500.0,0.00022998,5]
[336642045,1724995838627,-500.0,0.00022998,5]
[336642047,1724995838637,-500.0,0.00022998,5]
[336642049,1724995838649,-703.86,0.00022998,5]
[336642051,1724995838659,-500.0,0.00022998,5]
[336642053,1724995838670,-500.0,0.00022998,5]
[336642056,1724995838679,-500.0,0.00022998,5]
[336642058,1724995838688,-416.09270288,0.00022998,5]
[336642059,1724995838697,-544.83,0.00022998,5]
[336642062,1724995838707,-500.0,0.00022998,5]
[336642064,1724995838719,-500.0,0.00022998,5]
[336642067,1724995838729,-500.0,0.00022998,5]
[336642070,1724995838741,-500.0,0.00022998,5]
[336642074,1724995838754,-500.0,0.00022998,5]
[336642076,1724995838768,-500.0,0.00022998,5]
[336642079,1724995838780,-500.0,0.00022998,5]
[336642081,1724995838792,-500.0,0.00022998,2]
[336642083,1724995838804,-500.0,0.00022998,5]
[336642085,1724995838816,-500.0,0.00022998,5]
[336642088,1724995838827,-500.0,0.00022998,5]
[336642090,1724995838841,-362.46,0.00022998,5]
[336642092,1724995838852,-500.0,0.00022998,5]
[336642095,1724995838865,-500.0,0.00022998,5]
[336642097,1724995838878,-500.0,0.00022998,5]
[336642099,1724995838889,-500.0,0.00022998,5]
[336642101,1724995838900,-500.0,0.00022999,5]
[336642104,1724995838911,-505.67596168,0.00022999,5]
[336642106,1724995838922,-500.0,0.00022999,5]
[336642108,1724995838933,-500.0,0.00022999,5]
[336642110,1724995838945,-500.0,0.00022999,5]
[336642112,1724995838956,-500.0,0.00022999,5]
[336642114,1724995838967,-500.0,0.00022999,5]
[336642117,1724995838979,-617.06,0.00022999,5]
[336642119,1724995838992,-507.17739424,0.00022999,5]
[336642121,1724995839004,-210.75469539,0.00022999,5]
[336642123,1724995839016,-507.55,0.00022999,5]
[336642126,1724995839030,-500.0,0.00022999,5]
[336642128,1724995839042,-505.37566838,0.00022999,5]
[336642130,1724995839054,-500.0,0.00022999,5]
[336642132,1724995839066,-500.0,0.00022999,5]
[336642135,1724995839081,-503.06198965,0.00022999,5]
[336642137,1724995839091,-500.0,0.00022999,5]
[336642139,1724995839103,-500.0,0.00022999,5]
[336642141,1724995839115,-626.62,0.00022999,5]
[336642144,1724995839129,-500.0,0.00022999,5]
[336642146,1724995839141,-500.0,0.00022999,5]
[336642148,1724995839155,-500.0,0.00022999,5]
[336642150,1724995839168,-527.10895967,0.00022999,5]
[336642152,1724995839178,-500.0,0.00022999,5]
[336642155,1724995839190,-500.0,0.00022999,5]
[336642157,1724995839201,-500.0,0.00022999,5]
[336642159,1724995839212,-503.69026441,0.00022999,5]
[336642161,1724995839224,-500.0,0.00022999,5]
[336642163,1724995839235,-501.72252859,0.00022999,5]
[336642166,1724995839247,-500.0,0.00022999,5]
[336642168,1724995839258,-500.0,0.00022999,5]
[336642170,1724995839269,-500.0,0.00022999,5]
[336642172,1724995839279,-500.0,0.00022999,5]
[336642174,1724995839291,-500.0,0.00022999,5]
[336642176,1724995839302,-501.58001797,0.00022999,5]
[336642179,1724995839313,-500.0,0.00022999,5]
[336642181,1724995839325,-501.94748031,0.00022999,5]
[336642183,1724995839337,-1225.61,0.00022999,5]
[336642185,1724995839349,-500.0,0.00022999,5]
[336642188,1724995839361,-500.0,0.00022999,5]
[336642190,1724995839373,-500.0,0.00022999,5]
[336642192,1724995839384,-500.0,0.00022999,5]
[336642194,1724995839397,-500.0,0.00022999,5]
[336642197,1724995839408,-507.05363032,0.00022999,5]
[336642199,1724995839419,-500.0,0.00022999,5]
[336642201,1724995839430,-500.0,0.00022999,5]
[336642203,1724995839442,-500.0,0.00022999,5]
[336642206,1724995839453,-500.0,0.00022999,5]
[336642208,1724995839463,-611.43009017,0.00022999,5]
[336642210,1724995839473,-500.0,0.00022999,5]
[336642212,1724995839484,-500.0,0.00022999,5]
[336642214,1724995839494,-500.0,0.00022999,5]
[336642216,1724995839504,-500.0,0.00022999,5]
[336642218,1724995839514,-500.0,0.00022999,5]
[336642220,1724995839524,-503.86560148,0.00022999,5]
[336642222,1724995839535,-500.0,0.00022999,5]
[336642224,1724995839547,-500.0,0.00022999,5]
[336642227,1724995839559,-500.0,0.00022999,5]
[336642229,1724995839570,-502.58725896,0.00022999,5]
[336642231,1724995839581,-500.0,0.00022999,5]
[336642233,1724995839593,-500.0,0.00022999,5]
[336642235,1724995839602,-500.0,0.00022999,5]